Cogmind - Beta 15 @@@ ROGUE MODE // 2025.06.05 @ 17:54:16 Player: the cat! Result: Destroyed by Y-45 Defender via exploding Nuclear Reactor Performance ------------- Evolutions (2) 1000 Regions Visited (3) 600 Robots Destroyed (42) 210 Value Destroyed (1062) 1062 Prototype IDs (13) 260 Alien Tech Used (0) 0 Bonus (0) 0 TOTAL SCORE: 3132 Bonus ------- None Cogmind --------- Core Integrity 0/550 Matter 196/300 Energy 26/100 System Corruption 0% Temperature Cool (0) Movement Core (100) Ox1 Location -8/Materials Parts ------- > --- POWER (1) -------- (None) > --- PROPULSION (4) --- (None) > --- UTILITY (4) ------ Transport Network Coupler Gun Armor Hacking Suite > --- WEAPON (2+2) ----- (None) > --- INVENTORY (5) ---- Hacking Suite Beam Rifle Beam Cannon Mining Laser Hammer Peak State ------------ > --- POWER ------------ (None) > --- PROPULSION ------- Wheel Compact Wheel Improved VTOL Module > --- UTILITY ---------- Large Storage Unit Transport Network Coupler Gun Armor Hacking Suite > --- WEAPON ----------- Improved EM Shotgun Improved EM Shotgun > --- INVENTORY -------- Hacking Suite Beam Rifle Beam Cannon Mining Laser Hammer [Rating: 26] Favorites ----------- Power Light Nuclear Core Engine Ion Engine Power Core Light Nuclear Core Propulsion Aluminum Leg Treads Light Treads Leg Aluminum Leg Wheel Wheel Flight Unit Improved VTOL Module Utility Disposable Heat Sink Device Disposable Heat Sink Storage Large Storage Unit Processor Signal Interpreter Hackware Hacking Suite Protection Light Armor Plating Weapon Beam Rifle Energy Gun Beam Rifle Energy Cannon Beam Cannon Ballistic Gun Light Assault Rifle Launcher Grenade Launcher Special Weapon Mining Laser Impact Weapon Hammer Build | -11 -10 -10 -8 ------- Run | Yrd Mat Sub Mat Slots Evolved 4 | . . . 4 Power . | . . . . Propulsion 2 | . . . 2 Utility 2 | . . . 2 Weapon . | . . . . Parts Attached 38 | . 13 6 19 Power 5 | . 3 . 2 Engine 3 | . 1 . 2 Core 2 | . 2 . . Reactor . | . . . . Propulsion 12 | . 4 2 6 Treads 4 | . 1 . 3 Leg 1 | . 1 . . Wheel 6 | . 2 2 2 Hover . | . . . . Flight 1 | . . . 1 Utility 8 | . 2 2 4 Device 2 | . 1 . 1 Storage 1 | . 1 . . Processor 2 | . . 1 1 Hackware 1 | . . . 1 Protection 2 | . . 1 1 Artifact . | . . . . Weapon 13 | . 4 2 7 Energy Gun 8 | . 2 1 5 Energy Cannon 1 | . . . 1 Ballistic Gun . | . . . . Ballistic Cannon . | . . . . Launcher 2 | . . 1 1 Special Weapon 1 | . 1 . . Impact Weapon 1 | . 1 . . Slashing Weapon . | . . . . Piercing Weapon . | . . . . Special Melee Weapon . | . . . . Unidentified Prototypes 2 | . . . 2 Parts Lost 24 | . 1 1 22 Power 5 | . 1 1 3 Propulsion 11 | . . . 11 Utility 2 | . . . 2 Weapon 6 | . . . 6 Highest Loss Streak 14 | . 1 1 14 To Critical Strikes . | . . . . Average Backups 10 | . 9 13 11 Power . | . . . . Propulsion 3 | . 3 4 2 Utility 2 | . 1 3 3 Weapon 4 | . 2 6 5 Tool/Special . | . . . . Unused Backups 10 | . 8 . 2 Power 2 | . 2 . . Propulsion 2 | . 1 . 1 Utility 2 | . 1 . 1 Weapon 4 | . 4 . . Tool/Special . | . . . . Average Slot Usage (%) 94 | . 99 99 73 Engine 6 | . 9 1 5 Core 6 | . 5 12 1 Treads 7 | . 3 11 12 Leg 10 | . 18 . . Wheel 10 | . 5 16 17 Device 10 | . 13 2 8 Storage 13 | . 14 14 8 Protection 2 | . . 9 1 Energy Gun 21 | . 25 21 10 Impact Weapon 2 | . 2 4 . Peak Build Rating 26 | . 13 13 26 Average Rating 12 | . 11 12 13 On Entrance 9 | 6 6 11 13 Naked Turns . | . . . . Heaviest Build 34 | 11 32 34 34 Greatest Support 40 | 20 20 36 40 Greatest Overweight (x) 3 | . 3 3 1 Average Overweight (x) 1 | . . 2 . Largest Inventory Capacity 15 | . 15 15 15 Average Capacity 12 | . 10 15 14 Most Carried 15 | . 15 15 15 Average Carried 10 | . 9 13 11 Final Capacity 15 | 8 15 15 5 Final Carried 15 | 6 15 14 5 Class Distribution -------------------- 90% | Mutant 9% | Scavenger-Mutant Dominant Class ---------------- Mutant | -10/Materials Mutant | -10/Subcaves Scavenger-Mutant | -8/Materials Resources | -11 -10 -10 -8 ----------- Run | Yrd Mat Sub Mat Matter Collected 830 | 194 244 74 318 Remotely . | . . . . Salvage Created 1335 | . 607 115 613 Parts 76 | . 35 5 36 Haulers Intercepted 3 | . 2 . 1 Recyclers Shooed 3 | . 1 . 2 Parts Field Recycled . | . . . . Retrieved Matter . | . . . . Parts Self-Destructed 11 | . . 11 . Prevented . | . . . . Kills | -11 -10 -10 -8 ------- Run | Yrd Mat Sub Mat Combat Hostiles Destroyed 30 | . 12 4 14 Guns 19 | . 12 2 5 Cannons 1 | . . . 1 AOE 8 | . . 2 6 Classes Destroyed 12 | . 5 2 5 Worker 4 | . . . 4 Builder 2 | . 1 . 1 Tunneler 1 | . . . 1 Hauler 3 | . 2 . 1 Operator 1 | . . . 1 Watcher 1 | . 1 . . Swarmer 8 | . 3 1 4 Grunt 13 | . 9 . 4 Brawler 1 | . . . 1 Duelist 2 | . . . 2 Sentry 4 | . . 1 3 Subdweller 2 | . . 2 . Best Kill Streak 9 | . 5 2 9 Combat Bots Only 7 | . 3 2 7 Max Kills in Single Turn 2 | . 2 1 2 Gunslinging . | . . . . Exploded 1 | . . 1 1 Melee . | . . . . Uniques/NPCs Destroyed . | . . . . Combat | -11 -10 -10 -8 -------- Run | Yrd Mat Sub Mat Hostile Shots Fired 240 | . 48 25 167 Missed 61 | . 13 4 44 Hits 179 | . 35 21 123 Melee 8 | . . . 8 Projectile 171 | . 35 21 115 AOE 2 | . . . 2 Critical Strikes 6 | . 1 . 5 Damage Taken 2817 | . 440 378 1999 Core 710 | . 71 64 575 Absorbed by Shields . | . . . . Core Remaining (%) 73 | 100 . 46 . Volleys Fired 89 | . 36 10 43 Largest 2 | . 2 2 2 Hottest 116 | . 112 112 116 Shots Fired 158 | . 71 15 72 Gun 126 | . 70 10 46 Cannon 16 | . . . 16 Launcher 15 | . . 5 10 Special 1 | . 1 . . Kinetic . | . . . . Thermal 123 | . 71 10 42 Explosive 15 | . . 5 10 Electromagnetic 20 | . . . 20 Robot Hit Streak 12 | . 11 11 12 Robot Miss Streak 5 | . 3 2 5 Penetration Max . | . . . . Secondary Targets 1 | . . . 1 Max Gunslinging Chain 1 | . . . 1 Shots Hit Robots 103 | . 43 11 49 Core Hits 73 | . 26 7 40 Critical Kills . | . . . . Critical Parts Destroyed . | . . . . Critical Strikes 6 | . 4 . 2 Burn 6 | . 4 . 2 Melee Attacks 8 | . 4 4 . Impact 8 | . 4 4 . Slashing . | . . . . Piercing . | . . . . Sneak Attacks . | . . . . Combat Hostiles . | . . . . Follow-up Attacks . | . . . . Damage Inflicted 2713 | . 634 422 1657 Guns 1261 | . 634 103 524 Cannons 177 | . . . 177 Explosions 1261 | . . 319 942 Melee . | . . . . Ramming 14 | . . . 14 Kinetic . | . . . . Thermal 1306 | . 634 103 569 Explosive 1102 | . . 319 783 Electromagnetic 291 | . . . 291 Impact . | . . . . Slashing . | . . . . Piercing . | . . . . Highest Corruption 3 | . 3 3 . Average Corruption 2 | . 2 3 . Corruption Purged . | . . . . Corruption Blocked . | . . . . Effects 16 | . 10 6 . Message Errors 7 | . 4 3 . Matter Fused 3 | . 3 . . Heat Flow Errors 3 | . 2 1 . Energy Discharges 1 | . 1 . . Data Loss (minor) 2 | . . 2 . Overload Shots . | . . . . Overflow Damage 24 | . . . 24 Projectiles . | . . . . Explosions 24 | . . . 24 Melee . | . . . . Knockbacks . | . . . . Impact . | . . . . Kinetic . | . . . . Secondary . | . . . . Self-Inflicted Damage 174 | . . . 174 Shots 5 | . . . 5 Rammed 2 | . . . 2 Targets Rammed 2 | . . . 2 Kicked . | . . . . Crushed . | . . . . Highest Temperature 328 | . 199 82 328 Average Temperature 85 | . 80 26 97 Received Heat Transfer 756 | . 213 39 504 Effects 1 | . . . 1 Energy Bleed 1 | . . . 1 Siege Activations . | . . . . Martial Activations . | . . . . Shielding Activations . | . . . . Robots Disrupted . | . . . . Combat Hostiles . | . . . . Robots Corrupted 1 | . . . 1 Combat Hostiles 1 | . . . 1 Parts Fried 1 | . . . 1 Impact Corruptions . | . . . . Robots Melted 1 | . . . 1 Combat Hostiles 1 | . . . 1 Parts Melted 11 | . 4 . 7 Heat Transferred 3493 | . 1924 259 1310 Parts Sabotaged . | . . . . Parts Stolen . | . . . . Parts Stripped . | . . . . Power Chain Reactions 2 | . . . 2 Alert | -11 -10 -10 -8 ------- Run | Yrd Mat Sub Mat Maximum Alert Level 1 | . . . 1 Low Security (%) 98 | . 100 . 94 Level 1 1 | . . . 5 Level 2 . | . . . . Level 3 . | . . . . Level 4 . | . . . . Level 5 . | . . . . High Security . | . . . . Max Security . | . . . . Peak Influence 233 | . 84 . 233 Initial . | . . . . Average 52 | . 30 . 128 Influence Increases 858 | . 331 40 487 Destroy 0b10 Robot/C 560 | . 240 40 280 Destroy 0b10 Robot/NC 60 | . 20 . 40 Destroy Leader 138 | . 56 . 82 Successful Hack 9 | . 9 . . Disable Machine 15 | . . . 15 Destroy Structure 61 | . 6 . 55 Lose Combat Pursuer 15 | . . . 15 Influence Decreases 705 | . 330 41 334 Entered New Map 1 | . . 1 . Time Decay 474 | . 320 40 114 Lost Part 230 | . 10 . 220 Squads Dispatched 7 | . 4 . 3 Investigation 2 | . 2 . . Extermination . | . . . . Reinforcement 2 | . 2 . . Assault . | . . . . Garrison 3 | . . . 3 Intercept . | . . . . Searches Triggered . | . . . . Construction Impeded . | . . . . Haulers Reinforced . | . . . . Active Scanning Responses . | . . . . Cargo Convoy Interrupts . | . . . . Stealth | -11 -10 -10 -8 --------- Run | Yrd Mat Sub Mat Distress Signals 5 | . 3 . 2 Communications Jammed . | . . . . Distress Signals . | . . . . Times Spotted 56 | . 24 6 26 Peak Tracking Total 8 | . 6 2 8 Tactical Retreats 3 | . 1 1 1 Traps | -11 -10 -10 -8 ------- Run | Yrd Mat Sub Mat Traps Triggered 4 | . 4 . . Indirectly . | . . . . Trap Hack Attempts . | . . . . Triggered . | . . . . Disarmed . | . . . . Reprogrammed . | . . . . Reused . | . . . . Traps Extracted . | . . . . Installed . | . . . . Triggered . | . . . . Machines | -11 -10 -10 -8 ---------- Run | Yrd Mat Sub Mat Machines Disabled 2 | . . 1 1 Max in Single Turn 1 | . . 1 1 Machines Repaired . | . . . . Machines Dismantled . | . . . . Machines Sabotaged . | . . . . Overloaded Fab Kills . | . . . . Hacking | -11 -10 -10 -8 --------- Run | Yrd Mat Sub Mat Machines Accessed 8 | . 7 1 . Terminals 6 | . 6 . . Fabricators . | . . . . Repair Stations . | . . . . Recycling Units 1 | . 1 . . Scanalyzers . | . . . . Garrison Access . | . . . . Total Hacks 19 | . 18 1 . Successful 7 | . 6 1 . Failed 12 | . 12 . . Catastrophic 4 | . 4 . . Database Lockouts . | . . . . Manual 13 | . 13 . . Terminals 15 | . 15 . . Fabricators . | . . . . Repair Stations . | . . . . Recycling Units 3 | . 3 . . Scanalyzers . | . . . . Garrison Access . | . . . . Terminal Hacks 5 | . 4 1 . Terminal Index 1 | . 1 . . Locate Traps 1 | . 1 . . Zone Layout 2 | . 2 . . Proto ID Catalog 1 | . . 1 . Fabricator Hacks . | . . . . Repair Station Hacks . | . . . . Recycling Unit Hacks . | . . . . Scanalyzer . | . . . . Garrison Access Hacks . | . . . . Unauthorized Hacks 2 | . 2 . . Terminals 1 | . 1 . . Track 1 | . 1 . . Fabricators . | . . . . Repair Stations . | . . . . Recycling Units 1 | . 1 . . Mask 1 | . 1 . . Scanalyzers . | . . . . Garrison Access . | . . . . Data Cores Recovered . | . . . . Used . | . . . . Hacking Detections 7 | . 7 . . Full Trace Events 1 | . 1 . . Feedback Events . | . . . . Feedback Blocked . | . . . . Robot Schematics Acquired . | . . . . Robots Built . | . . . . Authchips . | . . . . Time . | . . . . Total Robot Build Rating . | . . . . Part Schematics Acquired . | . . . . Parts Built . | . . . . Authchips . | . . . . Time . | . . . . Total Part Build Rating . | . . . . Parts Repaired . | . . . . Time . | . . . . Parts Recycled . | . . . . Recycled Matter . | . . . . Retrieved Matter . | . . . . Retrieved Components . | . . . . Parts Scanalyzed . | . . . . Part Schematics Acquired . | . . . . Parts Damaged . | . . . . Bothacking | -11 -10 -10 -8 ------------ Run | Yrd Mat Sub Mat Used RIF Installer . | . . . . Robots Hacked . | . . . . Non-combat . | . . . . Combat . | . . . . Robot Hacks Applied . | . . . . Relay Couplers Released . | . . . . Fabnet Peak Effective % . | . . . . Robots Rewired . | . . . . Allies Hacked . | . . . . Hacks Repelled . | . . . . Allies | -11 -10 -10 -8 -------- Run | Yrd Mat Sub Mat Total Allies . | . . . . Largest Group . | . . . . Highest-Rated Group . | . . . . Highest-Rated Ally . | . . . . Total Orders . | . . . . Ally Attacks . | . . . . Total Damage . | . . . . Kills . | . . . . Allies Corrupted . | . . . . Allies Melted . | . . . . Intel | -11 -10 -10 -8 ------- Run | Yrd Mat Sub Mat Active Infowar (turns) 205 | . . . 205 Structural 194 | . . . 194 T.N.C. 11 | . . . 11 Robot Analysis Total . | . . . . Derelict Logs Recovered . | . . . . Drone Launches . | . . . . Drone Recoveries . | . . . . Exploration | -11 -10 -10 -8 ------------- Run | Yrd Mat Sub Mat Turns Passed 1649 | . 976 397 276 Spaces Moved 1019 | 1 647 282 89 Core . | . . . . Treads 2 | . . . 2 Legs 359 | 1 358 . . Wheels 647 | . 289 282 76 Hover . | . . . . Flight 11 | . . . 11 Fastest Speed 40 | 120 115 105 40 Average Speed 118 | 120 120 121 97 Slowest Speed 190 | 120 190 125 160 Overloaded Moves . | . . . . Propulsion Burnouts . | . . . . Robots Hopped . | . . . . Potential Cave-ins . | . . . . Cave-ins Triggered . | . . . . Exploration Rate (%) 29 | 2 78 21 15 Regions Visited 3 Branch Regions 1 Pre-discovered Areas . | . . . . Known Exits Taken 1 | . . 1 . Unknown Exits Taken 2 | 1 1 . . Scrap Searched . | . . . . Spaces Dug 4 | . 4 . . Terrain Destroyed 73 | . 4 16 53 Melee 3 | . 3 . . Projectile 1 | . 1 . . AOE 69 | . . 16 53 Terrain Rammed . | . . . . Walls Destroyed . | . . . . Machines Disabled . | . . . . Actions | -11 -10 -10 -8 --------- Run | Yrd Mat Sub Mat Total 1271 | . 762 310 199 Wait 42 | . 23 . 19 Move 1016 | . 646 281 89 Hop . | . . . . Pick Up 29 | . 18 1 10 Fast Attach 11 | . 7 . 4 Attach 23 | . 3 2 18 Detach . | . . . . Swap 34 | . 12 11 11 Drop 17 | . 13 1 3 Fire 89 | . 36 10 43 Melee 8 | . 4 4 . Ram 2 | . . . 2 Kick . | . . . . Crush . | . . . . Escape Stasis . | . . . . Rewire . | . . . . Trap . | . . . . Miscellaneous . | . . . . Route ------- -11/Scrapyard -10/Materials (discovered 5 exits: [*Mat x2] / [*Min x2] / *Sub) -10/Subcaves (discovered 2 exits: *Mat x2) -8/Materials History --------- Turn | Location | Event 1 | -11/Scrapyard | Discovered new exit (range 0) 1 | -11/Scrapyard | Entered Materials 122 | -10/Materials | Discovered new exit (range 14) 268 | -10/Materials | Discovered new exit (range 7) 303 | -10/Materials | Discovered new exit (range 15) 312 | -10/Materials | Build established: Mutant 501 | -10/Materials | Derelicts attacked the area 620 | -10/Materials | Discovered new exit (range 3) 724 | -10/Materials | Discovered new exit (range 16) 977 | -10/Materials | Entered Subcaves 1000 | -10/Subcaves | Discovered new exit (range 15) 1042 | -10/Subcaves | Identified exit to Materials 1089 | -10/Subcaves | Core integrity fell below 50% 1126 | -10/Subcaves | Discovered exit to Materials (range 7) 1175 | -10/Subcaves | Visited 4L-MR0's lab 1186 | -10/Subcaves | Found Gun Armor 1374 | -10/Subcaves | Entered Materials 1374 | -8/Materials | Evolved 4 slots: Propulsion x2, Utility x2 1426 | -8/Materials | Garrison activated, responded to threat 1455 | -8/Materials | Lost 5 parts (1p1u3w) 1490 | -8/Materials | Destroyed 7 combat bots 1607 | -8/Materials | Core integrity fell below 50% 1637 | -8/Materials | Core integrity fell below 20% 1641 | -8/Materials | Attached Gun Armor, gained temporary slots: Weapon x2 1650 | -8/Materials | Destroyed by Y-45 Defender via exploding Nuclear Reactor Last Messages --------------- 01631_ S-10 Pest destroyed. 01636_ Chain reaction triggered in Imp. Ion Engine. 01636_ L-31 Rogue destroyed. 01638_ Structural Scanner destroyed. 01638_ Critical hit (Burn: +37). 01638_ Wheel destroyed. 01638_ Lgt. Ion Engine destroyed. 01641_ Core temporarily expanded with Weapon slot. 01641_ Lgt. Treads destroyed. 01643_ Dropped Lrg. Storage Unit. 01644_ Imp. EM Shotgun destroyed. 01645_ Dropped Imp. EM Shotgun. 01646_ Wheel destroyed. 01647_ S-10 Pest destroyed. 01650_ Nuclear Reactor explodes. 01650_ Imp. VTOL Module destroyed. 01650_ Com. Wheel destroyed. 01650_ Nuclear Reactor explodes. Map ----- +----------------------------------------------------+ | ????????????????????????????????????? | | ????????????????????????????????????? | | ????????????????????????????????????? | | ????????????????????????????????????? | | ????????????????????????????????????? | | ????????????????????????????????????? | | ????????????????????????????????????? | | ????????????????????????????????????? | | ????????????????????????????????????? | | ????????????????????????????????????? | | ????????????????????????????????????? | | ????????????????????????????????????? | | ????????????????????????????????????? | | ????????????????????????????????????? | | ????????????????????????????????????? | | ?????????????????????????####???????? | | ????????????????????????############? | | ??????????????????######### ######### | | ???????################### ### | | ?????###"""T""" # a ##!![ """ # | | ?????# ##!![ """ # | | ?????# ##![ """ # ! | | ?????# """ "# # | | ?????# """ T# " "" # | | ?????# """ "# "R"" | | ?????# @ ## """"% % | | ?????# ## ] = | | ?????# """ ###### | | ?????# """ #####= | | ?????# """ ![;### | | ?????# !! [%g%= % | | ?????+ r !! Y;;###= %= | | ?????#a###############Y;##### # | | ?????#??## ## ########## | | ????????????????????? """ ########### | | ???????????????????? "G" #?######## | | ??????????????????## " " ##????????? | | ??????????????????## #?????????? | | ??????????????????## ! #?????????? | | ??????????????????########??????????? | | ?????????????????? #??????????? | | ????????????????????????????????????? | | ????????????????????????????????????? | | ????????????????????????????????????? | | ????????????????????????????????????? | | ????????????????????????????????????? | | ????????????????????????????????????? | | ????????????????????????????????????? | | ????????????????????????????????????? | | ????????????????????????????????????? | +----------------------------------------------------+ Best States ------------- Heat Dissipation 31 Coolant Potential 50 Energy Generation 14 Energy Capacity 250 Matter Stores 300 Matter Capacity 300 Sight Range 16 Terrain Scan Density 10 Armor Coverage 150 Evasion (%) 62 Recoil Reduction 2 Offensive Hacking 10 Item Schematics ----------------- None Robot Schematics ------------------ None Fabricated ------------ Nothing Repaired ---------- Nothing Alien Tech Used ----------------- None Achievements -------------- None Challenges ------------ None Game ------ Seed ProjectionTiamatBlaster Manual? 0 Play Time 00:26:30 Cumulative 340.8 hours Start 2025.06.05 @ 17:27:32 End 2025.06.05 @ 17:54:16 Sessions 1 Manual Loads 0 Difficulty Rogue Special Mode None Game No. 99 Rogue 82 Adventurer 17 Explorer 0 Win Type - Total 18 Types 8/1/7/1/0/0/1/0/0/0 Lore% 64 Gallery% 72 Achievement% 73 Wizard Run 0 Options --------- Layout 2 ASCII 0 Keyboard 0 Movement Arrows Keybinds 0 Fullscreen 1 Font 24/Terminus Map View 50x44 Zoom Use 0% Tactical HUD 1 Map Filters NONE Filters NONE Steam 1 RUN: 8dbb677a-cf82-4181-b9ca-22475835c30d